[Event "SixDays One Year IM-B 2023"]
[Site "Budapest"]
[Date "2023.09.21"]
[Round "6.3"]
[White "Szabo, Abel"]
[Black "Valkova, Angelika"]
[Result "1/2-1/2"]
[ECO "C50"]
[WhiteElo "2234"]
[BlackElo "2057"]
[Annotator "ChessBase"]
[PlyCount "75"]
[EventDate "2023.09.18"]
[EventType "tourn"]
[EventCountry "HUN"]
[SourceTitle "playchess.com"]
[Source "ChessBase"]
[SourceQuality "1"]
[TimeControl "5400+30"]

1. e4 {[%emt 0:00:03]} e5 {[%emt 0:06:59]} 2. Nf3 {[%emt 0:00:10]} Nc6 {[%emt 0:00:10]} 3. Bc4 {[%emt 0:00:10]} Bc5 {[%emt 0:00:09]} 4. O-O {[%emt 0:00:13]} Nf6 {[%emt 0:00:15]} 5. d4 {[%emt 0:00:25]} Bxd4 {[%emt 0:00:18]} 6. Nxd4 {[%emt 0:00:12]} Nxd4 {[%emt 0:00:06]} 7. Bg5 {[%emt 0:00:11]} h6 {[%emt 0:00:47]} 8. Bh4 {[%emt 0:00:11]} Qe7 {[%emt 0:00:18]} 9. f4 {[%emt 0:08:15]} Qc5 {[%emt 0:00:52]} 10. fxe5 {[%emt 0:01:03]} Nf3+ {[%emt 0:00:08]} 11. Kh1 {[%emt 0:00:09]} Nxh4 {[%emt 0:00:30]} 12. exf6 {[%emt 0:00:08]} Qxc4 {[%emt 0:00:07]} 13. fxg7 {[%emt 0:00:09]} Rg8 {[%emt 0:00:04]} 14. Nc3 {[%emt 0:00:10]} c6 {[%emt 0:00:06]} 15. Qd2 {[%emt 0:00:21]} Qe6 {[%emt 0:12:15]} 16. e5 {[%emt 0:16:44]} Rxg7 {[%emt 0:08:13]} 17. Rf6 {[%emt 0:06:04]} Qg4 {[%emt 0:01:42]} 18. Rxh6 {[%emt 0:01:27]} d5 {[%emt 0:05:13]} 19. exd6 {[%emt 0:02:15]} Be6 {[%emt 0:01:26]} 20. h3 {[%emt 0:01:37]} Qg3 {[%emt 0:10:38]} 21. Ne4 {[%emt 0:01:19]} Qe5 {[%emt 0:20:10]} 22. Nf6+ {[%emt 0:00:17]} Qxf6 {[%emt 0:00:06]} 23. Rxf6 {[%emt 0:00:11]} O-O-O {[%emt 0:00:23]} 24. Qh6 {[%emt 0:02:06]} Rxg2 {[%emt 0:04:10]} 25. Qxh4 {[%emt 0:00:18]} Bd5 {[%emt 0:00:41]} 26. c4 {[%emt 0:02:36]} Rg4+ {[%emt 0:00:51]} 27. cxd5 {[%emt 0:00:08]} Rxh4 {[%emt 0:00:04]} 28. dxc6 {[%emt 0:00:12]} bxc6 {[%emt 0:00:40]} 29. Rc1 {[%emt 0:00:24]} Rxh3+ {[%emt 0:02:34]} 30. Kg2 {[%emt 0:00:09]} Rd3 {[%emt 0:00:20]} 31. Rxc6+ {[%emt 0:01:16]} Kb8 {[%emt 0:00:53]} 32. Kf2 {[%emt 0:03:52]} Rd7 {[%emt 0:03:25]} 33. Ke2 {[%emt 0:00:33]} Rd5 {[%emt 0:00:41]} 34. Ke3 {[%emt 0:01:08]} Kb7 {[%emt 0:00:21]} 35. Rc7+ {[%emt 0:00:06]} Rxc7 {[%emt 0:00:09]} 36. dxc7 {[%emt 0:00:06]} Rd7 {[%emt 0:00:07]} 37. Rc6 {[%emt 0:06:25]} Rxc7 {[%emt 0:02:39]} 38. Rf6 1/2-1/2

[Event "SixDays One Year IM-B 2023"]
[Site "Budapest"]
[Date "2023.09.21"]
[Round "6.4"]
[White "Balint, Vilmos"]
[Black "Pagan, Jonathan"]
[Result "1/2-1/2"]
[ECO "B12"]
[WhiteElo "2217"]
[BlackElo "2021"]
[Annotator "ChessBase"]
[PlyCount "56"]
[EventDate "2023.09.18"]
[EventType "tourn"]
[EventCountry "HUN"]
[SourceTitle "playchess.com"]
[Source "ChessBase"]
[SourceQuality "1"]
[TimeControl "5400+30"]

1. e4 {[%emt 0:06:57]} c6 {[%emt 0:01:42]} 2. d4 {[%emt 0:00:14]} d5 {[%emt 0:01:24]} 3. e5 {[%emt 0:00:06]} Bf5 {[%emt 0:00:06]} 4. Nf3 {[%emt 0:00:05]} e6 {[%emt 0:00:04]} 5. Be2 {[%emt 0:00:09]} c5 {[%emt 0:00:56]} 6. Be3 {[%emt 0:05:15]} Qb6 {[%emt 0:06:21]} 7. Nc3 {[%emt 0:04:35]} Nc6 {[%emt 0:02:19]} 8. O-O {[%emt 0:03:27]} Qxb2 {[%emt 0:04:37]} 9. Nb5 {[%emt 0:01:00]} c4 {[%emt 0:00:06]} 10. Rb1 {[%emt 0:03:02]} Qxc2 {[%emt 0:09:35]} 11. Qxc2 {[%emt 0:01:10]} Bxc2 {[%emt 0:00:05]} 12. Rb2 {[%emt 0:00:02]} Bg6 {[%emt 0:00:16]} 13. Nc7+ {[%emt 0:00:06]} Kd7 {[%emt 0:00:14]} 14. Nxa8 {[%emt 0:00:05]} Kc8 {[%emt 0:00:12]} 15. Nh4 {[%emt 0:00:14]} Ba3 {[%emt 0:00:43]} 16. Nxg6 {[%emt 0:00:15]} hxg6 {[%emt 0:00:04]} 17. Rb5 {[%emt 0:01:58]} Nge7 {[%emt 0:06:50]} 18. Rfb1 {[%emt 0:00:39]} Kb8 {[%emt 0:00:06]} 19. Nc7 {[%emt 0:03:14]} Kxc7 {[%emt 0:00:07]} 20. Rxb7+ {[%emt 0:00:03]} Kc8 {[%emt 0:00:31]} 21. Bd1 {[%emt 0:03:23]} a5 {[%emt 0:05:20]} 22. Ba4 {[%emt 0:02:33]} Rf8 {[%emt 0:00:07]} 23. Bd2 {[%emt 0:01:56]} Bb4 {[%emt 0:02:53]} 24. Bxb4 {[%emt 0:00:19]} axb4 {[%emt 0:00:20]} 25. Rb5 {[%emt 0:00:17]} Kc7 {[%emt 0:01:38]} 26. Rc5 {[%emt 0:00:09]} Kb6 {[%emt 0:00:11]} 27. Rb5+ {[%emt 0:00:33]} Kc7 {[%emt 0:00:04]} 28. Rc5 {[%emt 0:10:14]} Kb6 {[%emt 0:00:34]} 1/2-1/2

[Event "SixDays One Year IM-B 2023"]
[Site "Budapest"]
[Date "2023.09.21"]
[Round "6.5"]
[White "Pap, Gyula"]
[Black "To, Nhat Minh"]
[Result "1/2-1/2"]
[ECO "B15"]
[WhiteElo "2429"]
[BlackElo "2342"]
[Annotator "ChessBase"]
[PlyCount "68"]
[EventDate "2023.09.18"]
[EventType "tourn"]
[EventCountry "HUN"]
[SourceTitle "playchess.com"]
[Source "ChessBase"]
[SourceQuality "1"]
[TimeControl "5400+30"]

1. e4 {[%emt 0:06:00]} c6 {[%emt 0:00:05]} 2. d4 {[%emt 0:00:06]} d5 {[%emt 0:00:03]} 3. Nc3 {[%emt 0:00:06]} dxe4 {[%emt 0:00:05]} 4. Nxe4 {[%emt 0:00:05]} Nf6 {[%emt 0:00:06]} 5. Nxf6+ {[%emt 0:00:04]} exf6 {[%emt 0:00:03]} 6. Bc4 {[%emt 0:00:08]} Bd6 {[%emt 0:00:06]} 7. Qe2+ {[%emt 0:00:05]} Qe7 {[%emt 0:00:05]} 8. Qxe7+ {[%emt 0:00:04]} Kxe7 {[%emt 0:00:07]} 9. Be3 {[%emt 0:00:05]} Be6 {[%emt 0:00:08]} 10. Bxe6 {[%emt 0:00:05]} fxe6 {[%emt 0:00:05]} 11. O-O-O {[%emt 0:00:06]} Nd7 {[%emt 0:00:04]} 12. Nf3 {[%emt 0:00:05]} Kf7 {[%emt 0:00:08]} 13. Rhe1 {[%emt 0:00:04]} Rhe8 {[%emt 0:00:07]} 14. c3 {[%emt 0:00:05]} Rad8 {[%emt 0:00:06]} 15. Kc2 {[%emt 0:00:05]} a6 {[%emt 0:00:06]} 16. g3 {[%emt 0:00:06]} h5 {[%emt 0:00:08]} 17. h4 {[%emt 0:00:06]} Nb6 {[%emt 0:00:11]} 18. a3 {[%emt 0:00:10]} Bc7 {[%emt 0:00:07]} 19. Bc1 {[%emt 0:00:11]} Rd7 {[%emt 0:00:12]} 20. Re2 {[%emt 0:00:05]} Rde7 {[%emt 0:00:20]} 21. Rde1 {[%emt 0:00:07]} Nd7 {[%emt 0:00:09]} 22. a4 {[%emt 0:00:10]} e5 {[%emt 0:00:11]} 23. dxe5 {[%emt 0:00:03]} Nxe5 {[%emt 0:00:05]} 24. Nxe5+ {[%emt 0:00:05]} Rxe5 {[%emt 0:00:05]} 25. Rxe5 {[%emt 0:00:05]} Rxe5 {[%emt 0:00:03]} 26. Rxe5 {[%emt 0:00:07]} Bxe5 {[%emt 0:00:03]} 27. Kd3 {[%emt 0:00:06]} Ke6 {[%emt 0:00:06]} 28. Ke4 {[%emt 0:00:06]} g6 {[%emt 0:00:07]} 29. c4 {[%emt 0:00:05]} Bd6 {[%emt 0:00:07]} 30. b3 {[%emt 0:00:06]} Be7 {[%emt 0:00:08]} 31. Be3 {[%emt 0:00:07]} Bd6 {[%emt 0:00:05]} 32. Bd4 {[%emt 0:00:09]} Be7 {[%emt 0:00:09]} 33. Be3 {[%emt 0:00:03]} Bd6 {[%emt 0:00:04]} 34. Bd4 {[%emt 0:00:04]} Be7 {[%emt 0:00:06]} 1/2-1/2

[Event "SixDays One Year IM-B 2023"]
[Site "Budapest"]
[Date "2023.09.22"]
[Round "7.2"]
[White "Pagan, Jonathan"]
[Black "Pap, Gyula"]
[Result "0-1"]
[ECO "D37"]
[WhiteElo "2021"]
[BlackElo "2429"]
[Annotator "RC"]
[PlyCount "120"]
[EventDate "2023.09.18"]
[EventType "tourn"]
[EventCountry "HUN"]
[SourceTitle "playchess.com"]
[Source "ChessBase"]
[SourceQuality "1"]
[TimeControl "5400+30"]

1. d4 {[%emt 0:12:41]} d5 {[%emt 0:00:49]} 2. c4 {[%emt 0:00:05]} e6 {[%emt 0:00:06]} 3. Nf3 {[%emt 0:00:04]} Nf6 {[%emt 0:00:53]} 4. Nc3 {[%emt 0:00:08]} Nbd7 {[%emt 0:00:26]} 5. Bf4 {[%emt 0:00:05]} Bb4 {[%emt 0:01:07]} 6. cxd5 {[%emt 0:00:05]} exd5 {[%emt 0:00:21]} 7. Qc2 {[%emt 0:00:06]} Ne4 {[%emt 0:02:16]} 8. e3 {[%emt 0:01:52]} g5 {[%emt 0:02:35]} 9. Be5 {[%emt 0:00:08]} Rg8 {[%emt 0:00:36]} 10. Bd3 {[%emt 0:04:16]} g4 {[%emt 0:01:15]} 11. Bxe4 {[%emt 0:01:52]} dxe4 {[%emt 0:00:07]} 12. Nd2 {[%emt 0:00:20]} Bxc3 {[%emt 0:11:40]} 13. bxc3 {[%emt 0:00:05]} Nxe5 {[%emt 0:00:39]} 14. Qxe4 {[%emt 0:01:50]} Qe7 {[%emt 0:02:54]} 15. dxe5 {[%emt 0:00:12]} Rg5 {[%emt 0:03:10]} 16. Nc4 {[%emt 0:50:47]} Rh5 {[%emt 0:15:23]} 17. Rd1 {[%emt 0:01:13]} a5 {[%emt 0:03:29]} 18. Qd4 {[%emt 0:04:22]} Be6 {[%emt 0:03:19]} 19. g3 {[%emt 0:08:47]} Rd8 {[%emt 0:09:41]} 20. Qxd8+ {[%emt 0:00:05]} Qxd8 {[%emt 0:00:05]} 21. Rxd8+ {[%emt 0:00:04]} Kxd8 {[%emt 0:00:06]} 22. Nxa5 {[%emt 0:00:58]} Rxe5 {[%emt 0:01:26]} 23. Nb3 {[%emt 0:00:12]} Rb5 {[%emt 0:04:58]} 24. Nd2 {[%emt 0:07:17]} Rb2 {[%emt 0:01:03]} 25. f3 {[%emt 0:01:36]} Rxa2 {[%emt 0:03:25]} 26. Rf1 {[%emt 0:00:25]} Rc2 {[%emt 0:01:34]} 27. c4 {[%emt 0:00:41]} Bxc4 {[%emt 0:01:29]} 28. Nxc4 {[%emt 0:00:11]} Rxc4 {[%emt 0:00:05]} 29. Kd2 {[%emt 0:00:34]} gxf3 {[%emt 0:03:24]} 30. Rxf3 {[%emt 0:00:04]} Ke7 {[%emt 0:00:05]} 31. Rf5 {[%emt 0:00:17]} Rc6 {[%emt 0:00:31]} 32. Rh5 {[%emt 0:00:26]} h6 {[%emt 0:00:05]} 33. Kd3 {[%emt 0:00:09]} Rd6+ {[%emt 0:00:46]} 34. Kc4 {[%emt 0:01:00]} Kf8 {[%emt 0:00:11]} 35. Rc5 {[%emt 0:00:47]} c6 {[%emt 0:00:28]} 36. Rh5 {[%emt 0:01:58]} b6 {[%emt 0:01:04]} 37. Rh4 {[%emt 0:00:14]} Kg7 {[%emt 0:00:09]} 38. Kc3 {[%emt 0:00:28]} Rd5 {[%emt 0:00:27]} 39. Rg4+ {[%emt 0:00:05]} Kf6 {[%emt 0:00:13]} 40. Rf4+ {[%emt 0:00:25]} Rf5 {[%emt 0:00:28]} 41. Rd4 {[%emt 0:03:20]} Rc5+ {[%emt 0:00:38]} 42. Kb3 {[%emt 0:00:30]} Re5 {[%emt 0:01:13]} 43. Rf4+ {[%emt 0:00:15]} Ke6 {[%emt 0:00:26]} 44. Rh4 {[%emt 0:00:45]} h5 {[%emt 0:00:18]} 45. Kc2 {[%emt 0:00:03]} b5 {[%emt 0:00:40]} 46. Kd3 {[%emt 0:00:35]} Rd5+ {[%emt 0:00:21]} 47. Kc3 {[%emt 0:00:10]} c5 {[%emt 0:00:06]} 48. g4 {[%emt 0:01:11]} hxg4 {[%emt 0:00:29]} 49. Rxg4 {[%emt 0:00:03]} Re5 {[%emt 0:04:54]} 50. Kd2 {[%emt 0:01:09]} Rh5 {[%emt 0:02:15]} 51. h4 {[%emt 0:00:04]} f5 {[%emt 0:00:29]} 52. Rg6+ {[%emt 0:00:28]} Kd5 {[%emt 0:00:34]} 53. Rf6 {[%emt 0:00:50]} Kc4 {[%emt 0:00:24]} 54. Kc2 {[%emt 0:00:04]} b4 {[%emt 0:00:24]} 55. Rf8 {[%emt 0:00:17]} b3+ {[%emt 0:00:13]} 56. Kb2 {[%emt 0:00:09]} Rxh4 {[%emt 0:00:06]} 57. Rxf5 {[%emt 0:00:07]} Rh2+ {[%emt 0:00:04]} 58. Kb1 {[%emt 0:00:14]} Kb4 {[%emt 0:00:05]} 59. Rf8 {[%emt 0:00:33]} c4 {[%emt 0:00:06]} 60. Rb8+ {[%emt 0:00:04]} Kc3 {[%emt 0:00:04]} 0-1

[Event "SixDays One Year IM-B 2023"]
[Site "Budapest"]
[Date "2023.09.22"]
[Round "7.3"]
[White "Valkova, Angelika"]
[Black "Balint, Vilmos"]
[Result "0-1"]
[ECO "A40"]
[WhiteElo "2057"]
[BlackElo "2217"]
[Annotator "RC"]
[PlyCount "86"]
[EventDate "2023.09.18"]
[EventType "tourn"]
[EventCountry "HUN"]
[SourceTitle "playchess.com"]
[Source "ChessBase"]
[SourceQuality "1"]
[TimeControl "5400+30"]

1. d4 {[%emt 0:11:18]} e6 {[%emt 0:09:27]} 2. c4 {[%emt 0:00:07]} b6 {[%emt 0:00:01]} 3. a3 {[%emt 0:00:11]} f5 {[%emt 0:00:19]} 4. Nc3 {[%emt 0:00:07]} Nf6 {[%emt 0:00:03]} 5. Bf4 {[%emt 0:00:20]} d6 {[%emt 0:00:48]} 6. e3 {[%emt 0:00:21]} Bb7 {[%emt 0:00:23]} 7. Nh3 {[%emt 0:11:03]} h6 {[%emt 0:00:17]} 8. Bg3 {[%emt 0:00:07]} g5 {[%emt 0:00:14]} 9. f3 {[%emt 0:00:45]} Nh5 {[%emt 0:04:12]} 10. Bf2 {[%emt 0:00:58]} Bg7 {[%emt 0:00:41]} 11. e4 {[%emt 0:10:22]} O-O {[%emt 0:05:47]} 12. Bd3 {[%emt 0:03:11]} Nc6 {[%emt 0:02:04]} 13. Bc2 {[%emt 0:04:22]} Na5 {[%emt 0:14:01]} 14. Qe2 {[%emt 0:12:45]} Ba6 {[%emt 0:00:23]} 15. b4 {[%emt 0:11:32]} Bxc4 {[%emt 0:00:29]} 16. Bd3 {[%emt 0:00:09]} Bxd3 {[%emt 0:00:45]} 17. Qxd3 {[%emt 0:00:05]} g4 {[%emt 0:03:26]} 18. exf5 {[%emt 0:06:50]} gxh3 {[%emt 0:00:40]} 19. g4 {[%emt 0:06:20]} Nf4 {[%emt 0:00:14]} 20. Qe4 {[%emt 0:00:05]} Ng2+ {[%emt 0:00:07]} 21. Kd1 {[%emt 0:01:10]} exf5 {[%emt 0:01:21]} 22. gxf5 {[%emt 0:02:12]} Nc4 {[%emt 0:05:22]} 23. Qe6+ {[%emt 0:00:44]} Kh8 {[%emt 0:00:07]} 24. Qxc4 {[%emt 0:00:11]} Rxf5 {[%emt 0:00:02]} 25. Qc6 {[%emt 0:05:37]} Qf8 {[%emt 0:00:51]} 26. Ra2 {[%emt 0:05:31]} Rxf3 {[%emt 0:00:15]} 27. Rd2 {[%emt 0:01:30]} Re8 {[%emt 0:00:49]} 28. a4 {[%emt 0:02:47]} Re7 {[%emt 0:00:35]} 29. Nd5 {[%emt 0:01:20]} Rxf2 {[%emt 0:05:36]} 30. Rxf2 {[%emt 0:00:06]} Qxf2 {[%emt 0:00:03]} 31. Nxe7 {[%emt 0:00:45]} Qxd4+ {[%emt 0:00:03]} 32. Ke2 {[%emt 0:01:35]} Qe3+ {[%emt 0:00:08]} 33. Kd1 {[%emt 0:00:23]} Qd3+ {[%emt 0:00:49]} 34. Kc1 {[%emt 0:01:05]} Qa3+ {[%emt 0:00:09]} 35. Kd1 {[%emt 0:00:58]} Qb3+ {[%emt 0:00:12]} 36. Kd2 {[%emt 0:00:50]} Qxb4+ {[%emt 0:00:09]} 37. Kd1 {[%emt 0:00:34]} Qd4+ {[%emt 0:01:02]} 38. Ke2 {[%emt 0:00:24]} Qe3+ {[%emt 0:01:11]} 39. Kd1 {[%emt 0:00:04]} Qxe7 {[%emt 0:00:11]} 40. Qf3 {[%emt 0:00:54]} Qe5 {[%emt 0:00:23]} 41. Kc2 {[%emt 0:00:29]} Ne1+ {[%emt 0:00:22]} 42. Rxe1 {[%emt 0:00:17]} Qxe1 {[%emt 0:00:02]} 43. Qxh3 {[%emt 0:00:14]} Qc3+ {[%emt 0:00:24]} 0-1

[Event "SixDays One Year IM-B 2023"]
[Site "Budapest"]
[Date "2023.09.22"]
[Round "7.4"]
[White "Szeberenyi, Adam"]
[Black "Szabo, Abel"]
[Result "1/2-1/2"]
[ECO "D38"]
[WhiteElo "2305"]
[BlackElo "2234"]
[Annotator "RC"]
[PlyCount "31"]
[EventDate "2023.09.18"]
[EventType "tourn"]
[EventCountry "HUN"]
[SourceTitle "playchess.com"]
[Source "ChessBase"]
[SourceQuality "1"]
[TimeControl "5400+30"]

1. d4 {[%emt 0:03:24]} Nf6 {[%emt 0:00:08]} 2. c4 {[%emt 0:00:21]} e6 {[%emt 0:00:07]} 3. Nf3 {[%emt 0:01:46]} d5 {[%emt 0:01:19]} 4. Nc3 {[%emt 0:00:05]} Bb4 {[%emt 0:00:11]} 5. cxd5 {[%emt 0:06:24]} exd5 {[%emt 0:01:09]} 6. Bg5 {[%emt 0:00:41]} c6 {[%emt 0:02:27]} 7. Qb3 {[%emt 0:05:11]} Be7 {[%emt 0:03:23]} 8. e3 {[%emt 0:03:34]} O-O {[%emt 0:04:21]} 9. Bd3 {[%emt 0:00:34]} Re8 {[%emt 0:06:37]} 10. O-O {[%emt 0:03:31]} Nbd7 {[%emt 0:01:10]} 11. h3 {[%emt 0:03:38]} Nf8 {[%emt 0:02:00]} 12. Ne5 {[%emt 0:01:10]} N6d7 {[%emt 0:06:51]} 13. Bf4 {[%emt 0:06:21]} Nxe5 {[%emt 0:03:43]} 14. Bxe5 {[%emt 0:02:11]} Bd6 {[%emt 0:05:18]} 15. Bxd6 {[%emt 0:03:53]} Qxd6 {[%emt 0:00:09]} 16. Rac1 {[%emt 0:02:13]} 1/2-1/2

[Event "SixDays One Year IM-B 2023"]
[Site "Budapest"]
[Date "2023.09.22"]
[Round "7.5"]
[White "Besou, Hussain"]
[Black "Kozusek, Daniel"]
[Result "1/2-1/2"]
[ECO "B12"]
[WhiteElo "2364"]
[BlackElo "2365"]
[Annotator "RC"]
[PlyCount "67"]
[EventDate "2023.09.18"]
[EventType "tourn"]
[EventCountry "HUN"]
[SourceTitle "playchess.com"]
[Source "ChessBase"]
[SourceQuality "1"]
[TimeControl "5400+30"]

1. e4 {[%emt 0:00:03]} c6 {[%emt 0:00:57]} 2. d4 {[%emt 0:00:10]} d5 {[%emt 0:00:04]} 3. e5 {[%emt 0:00:08]} c5 {[%emt 0:00:03]} 4. dxc5 {[%emt 0:00:06]} e6 {[%emt 0:00:04]} 5. a3 {[%emt 0:00:14]} Bxc5 {[%emt 0:00:04]} 6. b4 {[%emt 0:00:15]} Be7 {[%emt 0:00:12]} 7. Nf3 {[%emt 0:00:34]} a5 {[%emt 0:00:29]} 8. b5 {[%emt 0:00:10]} Nd7 {[%emt 0:00:34]} 9. Bb2 {[%emt 0:02:44]} f6 {[%emt 0:00:07]} 10. c4 {[%emt 0:03:06]} Nxe5 {[%emt 0:02:40]} 11. Nxe5 {[%emt 0:00:39]} fxe5 {[%emt 0:00:05]} 12. Bxe5 {[%emt 0:00:19]} Bf6 {[%emt 0:01:24]} 13. Nd2 {[%emt 0:05:04]} Nh6 {[%emt 0:02:28]} 14. Bxf6 {[%emt 0:01:23]} Qxf6 {[%emt 0:00:06]} 15. Be2 {[%emt 0:00:12]} O-O {[%emt 0:00:53]} 16. O-O {[%emt 0:00:10]} b6 {[%emt 0:01:48]} 17. cxd5 {[%emt 0:05:26]} exd5 {[%emt 0:01:32]} 18. Nf3 {[%emt 0:01:26]} Bb7 {[%emt 0:00:40]} 19. Qd4 {[%emt 0:01:06]} Nf5 {[%emt 0:13:03]} 20. Qxf6 {[%emt 0:03:54]} Rxf6 {[%emt 0:00:09]} 21. Rfd1 {[%emt 0:05:54]} Rc8 {[%emt 0:02:30]} 22. Bd3 {[%emt 0:06:22]} Nd6 {[%emt 0:13:35]} 23. Nd4 {[%emt 0:03:34]} Rf4 {[%emt 0:03:34]} 24. Bf1 {[%emt 0:01:05]} Ne4 {[%emt 0:03:13]} 25. f3 {[%emt 0:01:34]} Nc5 {[%emt 0:00:11]} 26. Ra2 {[%emt 0:03:43]} Kf7 {[%emt 0:06:22]} 27. Re2 {[%emt 0:10:33]} Rc7 {[%emt 0:02:22]} 28. g3 {[%emt 0:02:31]} Rf6 {[%emt 0:00:05]} 29. Bh3 {[%emt 0:00:14]} Re7 {[%emt 0:01:43]} 30. Rde1 {[%emt 0:00:19]} Rxe2 {[%emt 0:00:12]} 31. Rxe2 {[%emt 0:00:05]} g6 {[%emt 0:00:13]} 32. Re3 {[%emt 0:05:04]} Rd6 {[%emt 0:00:53]} 33. Kf2 {[%emt 0:01:24]} Rd8 {[%emt 0:01:16]} 34. Ke2 1/2-1/2

[Event "SixDays One Year IM-B 2023"]
[Site "Budapest"]
[Date "2023.09.22"]
[Round "8.1"]
[White "Meessen, Rudolf"]
[Black "Kozusek, Daniel"]
[Result "1/2-1/2"]
[ECO "C02"]
[WhiteElo "2109"]
[BlackElo "2365"]
[Annotator "ChessBase"]
[PlyCount "34"]
[EventDate "2023.09.18"]
[EventType "tourn"]
[EventCountry "HUN"]
[SourceTitle "playchess.com"]
[Source "ChessBase"]
[SourceQuality "1"]
[TimeControl "5400+30"]

1. e4 {[%emt 0:09:57]} e6 {[%emt 0:02:01]} 2. d4 {[%emt 0:00:04]} d5 {[%emt 0:00:04]} 3. e5 {[%emt 0:00:29]} c5 {[%emt 0:00:33]} 4. c3 {[%emt 0:00:05]} Nc6 {[%emt 0:00:24]} 5. Nf3 {[%emt 0:00:06]} Qb6 {[%emt 0:00:03]} 6. a3 {[%emt 0:00:41]} Nh6 {[%emt 0:00:12]} 7. Bd3 {[%emt 0:00:15]} cxd4 {[%emt 0:00:44]} 8. O-O {[%emt 0:00:07]} Nf5 {[%emt 0:01:30]} 9. Bxf5 {[%emt 0:07:50]} exf5 {[%emt 0:00:05]} 10. Nxd4 {[%emt 0:02:16]} Be6 {[%emt 0:07:47]} 11. b4 {[%emt 0:00:17]} Be7 {[%emt 0:12:26]} 12. Be3 {[%emt 0:00:43]} Qc7 {[%emt 0:00:57]} 13. f4 {[%emt 0:01:24]} O-O {[%emt 0:02:41]} 14. Nd2 {[%emt 0:00:12]} Nxd4 {[%emt 0:04:26]} 15. Bxd4 {[%emt 0:00:13]} Rfc8 {[%emt 0:01:25]} 16. Kh1 {[%emt 0:07:41]} a5 {[%emt 0:02:37]} 17. Qe2 {[%emt 0:02:19]} Qd7 {[%emt 0:03:47]} 1/2-1/2

[Event "SixDays One Year IM-B 2023"]
[Site "Budapest"]
[Date "2023.09.22"]
[Round "8.2"]
[White "Szabo, Abel"]
[Black "Besou, Hussain"]
[Result "0-1"]
[ECO "B94"]
[WhiteElo "2234"]
[BlackElo "2364"]
[Annotator "ChessBase"]
[PlyCount "88"]
[EventDate "2023.09.18"]
[EventType "tourn"]
[EventCountry "HUN"]
[SourceTitle "playchess.com"]
[Source "ChessBase"]
[SourceQuality "1"]
[TimeControl "5400+30"]

1. e4 {[%emt 0:00:02]} c5 {[%emt 0:00:05]} 2. Nf3 {[%emt 0:00:07]} d6 {[%emt 0:00:07]} 3. d4 {[%emt 0:00:08]} cxd4 {[%emt 0:00:06]} 4. Nxd4 {[%emt 0:00:08]} Nf6 {[%emt 0:00:05]} 5. Nc3 {[%emt 0:00:13]} a6 {[%emt 0:00:09]} 6. Bg5 {[%emt 0:00:09]} Nbd7 {[%emt 0:00:19]} 7. Qd2 {[%emt 0:04:28]} e6 {[%emt 0:06:51]} 8. O-O-O {[%emt 0:03:08]} Qc7 {[%emt 0:02:41]} 9. f3 {[%emt 0:03:05]} b5 {[%emt 0:03:53]} 10. Kb1 {[%emt 0:01:19]} Bb7 {[%emt 0:05:36]} 11. g4 {[%emt 0:02:25]} h6 {[%emt 0:01:48]} 12. Bxf6 {[%emt 0:06:24]} Nxf6 {[%emt 0:01:40]} 13. h4 {[%emt 0:08:20]} b4 {[%emt 0:01:22]} 14. Nce2 {[%emt 0:01:01]} d5 {[%emt 0:00:30]} 15. exd5 {[%emt 0:03:34]} Nxd5 {[%emt 0:00:37]} 16. Bh3 {[%emt 0:01:28]} e5 {[%emt 0:09:19]} 17. Nf5 {[%emt 0:08:21]} O-O-O {[%emt 0:01:09]} 18. Qc1 {[%emt 0:00:19]} Kb8 {[%emt 0:01:38]} 19. Ne3 {[%emt 0:02:42]} Bc5 {[%emt 0:02:06]} 20. Nxd5 {[%emt 0:02:57]} Bxd5 {[%emt 0:01:03]} 21. Bg2 {[%emt 0:01:47]} Rd7 {[%emt 0:13:26]} 22. c4 {[%emt 0:03:56]} Bb7 {[%emt 0:04:10]} 23. Rxd7 {[%emt 0:01:29]} Qxd7 {[%emt 0:00:05]} 24. Rd1 {[%emt 0:07:00]} Qe7 {[%emt 0:00:55]} 25. h5 {[%emt 0:02:44]} Qh4 {[%emt 0:09:06]} 26. Qd2 {[%emt 0:03:30]} Ka8 {[%emt 0:03:06]} 27. Nc1 {[%emt 0:05:51]} e4 {[%emt 0:06:26]} 28. fxe4 {[%emt 0:06:53]} Qxg4 {[%emt 0:00:21]} 29. Qe2 {[%emt 0:00:28]} Qxe2 {[%emt 0:01:37]} 30. Nxe2 {[%emt 0:00:06]} Re8 {[%emt 0:02:25]} 31. Ng3 {[%emt 0:01:19]} g6 {[%emt 0:01:04]} 32. Rd2 {[%emt 0:04:23]} Kb8 {[%emt 0:00:48]} 33. Kc2 {[%emt 0:01:36]} Kc7 {[%emt 0:01:55]} 34. Kd3 {[%emt 0:02:04]} Bd6 {[%emt 0:03:02]} 35. Ne2 {[%emt 0:00:14]} gxh5 {[%emt 0:00:23]} 36. Nd4 {[%emt 0:00:46]} Rd8 {[%emt 0:02:10]} 37. Ke2 {[%emt 0:00:33]} Rg8 {[%emt 0:01:31]} 38. Kf2 {[%emt 0:01:56]} Bc5 {[%emt 0:01:28]} 39. Bf3 {[%emt 0:01:32]} Rd8 {[%emt 0:00:37]} 40. Ke3 {[%emt 0:00:06]} h4 {[%emt 0:00:05]} 41. Bg4 {[%emt 0:02:24]} Bc8 {[%emt 0:00:41]} 42. Bf3 {[%emt 0:00:32]} h3 {[%emt 0:00:26]} 43. e5 {[%emt 0:01:03]} Rxd4 {[%emt 0:00:57]} 44. Rxd4 {[%emt 0:00:13]} Bb7 {[%emt 0:00:35]} 0-1

[Event "SixDays One Year IM-B 2023"]
[Site "Budapest"]
[Date "2023.09.22"]
[Round "8.3"]
[White "Balint, Vilmos"]
[Black "Szeberenyi, Adam"]
[Result "1/2-1/2"]
[ECO "D02"]
[WhiteElo "2217"]
[BlackElo "2305"]
[Annotator "ChessBase"]
[PlyCount "32"]
[EventDate "2023.09.18"]
[EventType "tourn"]
[EventCountry "HUN"]
[SourceTitle "playchess.com"]
[Source "ChessBase"]
[SourceQuality "1"]
[TimeControl "5400+30"]

1. d4 {[%emt 0:00:02]} d5 {[%emt 0:00:02]} 2. Nf3 {[%emt 0:00:09]} Nf6 {[%emt 0:00:05]} 3. Bf4 {[%emt 0:00:05]} c5 {[%emt 0:00:06]} 4. e3 {[%emt 0:00:05]} Nc6 {[%emt 0:00:03]} 5. c3 {[%emt 0:00:04]} e6 {[%emt 0:00:03]} 6. Nbd2 {[%emt 0:00:03]} Bd6 {[%emt 0:00:03]} 7. Bxd6 {[%emt 0:00:06]} Qxd6 {[%emt 0:00:03]} 8. Bd3 {[%emt 0:00:06]} e5 {[%emt 0:00:04]} 9. dxe5 {[%emt 0:00:04]} Nxe5 {[%emt 0:00:02]} 10. Nxe5 {[%emt 0:00:05]} Qxe5 {[%emt 0:00:03]} 11. Nf3 {[%emt 0:00:03]} Qe7 {[%emt 0:00:08]} 12. O-O {[%emt 0:00:08]} O-O {[%emt 0:00:04]} 13. Qc2 {[%emt 0:00:10]} Bg4 {[%emt 0:00:09]} 14. Be2 {[%emt 0:00:08]} Qe4 {[%emt 0:00:17]} 15. Rac1 {[%emt 0:00:21]} Qxc2 {[%emt 0:00:21]} 16. Rxc2 {[%emt 0:00:02]} Rfe8 {[%emt 0:00:04]} 1/2-1/2